[Event "VIII Open Semana Santa 2024"]
[Site "San Vicente del Raspeig"]
[Date "2024.03.29"]
[Round "4.20"]
[White "Sanchez Lopez, Jesus"]
[Black "Schulman, Julia"]
[Result "1-0"]
[ECO "B53"]
[WhiteElo "1951"]
[BlackElo "1732"]
[Annotator "RC"]
[PlyCount "63"]
[EventDate "2024.03.27"]
[EventType "swiss"]
[EventCountry "ESP"]
[SourceTitle "playchess.com"]
[Source "ChessBase"]
[SourceQuality "1"]
[TimeControl "5400+30"]

1. e4 {[%emt 0:00:30]} c5 {[%emt 0:00:30]} 2. Nf3 {[%emt 0:00:30]} d6 {[%emt 0:00:30]} 3. d4 {[%emt 0:00:30]} cxd4 {[%emt 0:00:30]} 4. Qxd4 {[%emt 0:00:30]} Nc6 {[%emt 0:00:30]} 5. Bb5 {[%emt 0:00:30]} Bd7 {[%emt 0:00:30]} 6. Bxc6 {[%emt 0:00:30]} Bxc6 {[%emt 0:00:30]} 7. Nc3 {[%emt 0:04:29]} Nf6 {[%emt 0:00:00]} 8. Bg5 {[%emt 0:00:14]} e5 {[%emt 0:01:18]} 9. Qd3 {[%emt 0:07:52]} h6 {[%emt 0:07:22]} 10. Bxf6 {[%emt 0:03:08]} Qxf6 {[%emt 0:00:15]} 11. Nb5 {[%emt 0:12:14]} Rc8 {[%emt 0:20:06]} 12. Nxa7 {[%emt 0:01:51]} Rc7 {[%emt 0:00:27]} 13. Nb5 {[%emt 0:10:32]} Rd7 {[%emt 0:04:12]} 14. O-O {[%emt 0:02:50]} Be7 {[%emt 0:02:01]} 15. c4 {[%emt 0:07:11]} g5 {[%emt 0:01:30]} 16. Nd2 {[%emt 0:02:30]} h5 {[%emt 0:01:14]} 17. Rfd1 {[%emt 0:01:43]} Qg6 {[%emt 0:05:43]} 18. Nc3 {[%emt 0:01:20]} g4 {[%emt 0:03:53]} 19. Nf1 {[%emt 0:01:17]} h4 {[%emt 0:01:16]} 20. Ne3 {[%emt 0:01:45]} Rh7 {[%emt 0:12:46]} 21. Ncd5 {[%emt 0:03:40]} Bxd5 {[%emt 0:04:15]} 22. Qxd5 {[%emt 0:02:20]} g3 {[%emt 0:02:45]} 23. fxg3 {[%emt 0:01:57]} h3 {[%emt 0:00:48]} 24. gxh3 {[%emt 0:02:00]} Rxh3 {[%emt 0:00:22]} 25. Nf5 {[%emt 0:01:14]} Bg5 {[%emt 0:08:55]} 26. Kg2 {[%emt 0:12:02]} Rh5 {[%emt 0:06:54]} 27. c5 {[%emt 0:02:42]} Qh7 {[%emt 0:01:26]} 28. h4 {[%emt 0:01:07]} f6 {[%emt 0:02:39]} 29. Qe6+ {[%emt 0:02:25]} Kf8 {[%emt 0:00:23]} 30. Rxd6 {[%emt 0:01:08]} Rxh4 {[%emt 0:00:38]} 31. gxh4 {[%emt 0:02:12]} Bxh4 {[%emt 0:02:50]} 32. Rxd7 {[%emt 0:01:00]} 1-0

[Event "VIII Open Semana Santa 2024"]
[Site "San Vicente del Raspeig"]
[Date "2024.03.29"]
[Round "5.1"]
[White "Levin, Guy"]
[Black "Piorun, Kacper"]
[Result "0-1"]
[ECO "D02"]
[WhiteElo "2452"]
[BlackElo "2599"]
[Annotator "TA"]
[PlyCount "96"]
[EventDate "2024.03.27"]
[EventType "swiss"]
[EventCountry "ESP"]
[SourceTitle "playchess.com"]
[Source "ChessBase"]
[SourceQuality "1"]
[TimeControl "5400+30"]

{[%evp 27,95,-14,-11,-34,-7,-7,-8,-9,-32,-26,-33,-22,0,-17,7,0,-5,-14,4,-27,-33,-31,-29,-22,-15,-58,-54,-57,-49,-73,-80,-114,-109,-154,-178,-310,-309,-337,-345,-318,-335,-334,-294,-403,-282,-256,-170,-482,-459,-464,-451,-818,-804,-778,-762,-614,-448,-491,-479,-458,-440,-719,-423,-489,-479,-395,-373,-29998,-29999,-29999]} 1. Nf3 {[%emt 0:00:10]} d5 {[%emt 0:00:20]} 2. g3 {[%emt 0:00:30]} Nd7 {[%emt 0:01:14]} 3. d4 {[%emt 0:01:00]} Nb6 {[%emt 0:00:06]} 4. Bg2 {[%emt 0:00:10]} Bf5 {[%emt 0:00:12]} 5. a4 {[%emt 0:00:14]} a5 {[%emt 0:00:06]} 6. O-O {[%emt 0:00:32] D02: 1 d4 d5 2 Nf3 sidelines, including 2...Nf6 3 g3 and 2...Nf6 3 Bf4.} Nf6 {[%emt 0:04:26]} 7. Nc3 {[%emt 0:09:42]} h6 {[%emt 0:08:29]} 8. Nd2 {[%emt 0:00:42]} e6 {[%emt 0:01:27]} 9. e4 {[%emt 0:00:21]} Bh7 $146 {[%emt 0:00:21]} ({Predecessor:} 9... dxe4 10. Ndxe4 Nxe4 11. Nxe4 c6 12. c3 Be7 13. Nc5 Bxc5 14. dxc5 Qxd1 15. Rxd1 Nd7 {½-½ Zhenetl,R (2435)-Frolyanov,D (2485) Titled Tuesday intern op 22nd Aug Early blitz 2023 (4)}) 10. exd5 {[%emt 0:03:26]} exd5 {[%emt 0:10:49]} 11. Nb3 {[%emt 0:10:27]} c6 {[%emt 0:01:18]} 12. Re1+ {[%emt 0:00:44]} Be7 {[%emt 0:00:04]} 13. Nc5 {[%emt 0:07:01]} Ra7 {[%emt 0:00:24]} 14. Qe2 {[%emt 0:13:32]} Nc8 {[%emt 0:00:08]} 15. Bh3 {[%emt 0:01:04]} b6 {[%emt 0:12:19]} (15... O-O $5) 16. Nd3 {[%emt 0:00:02]} O-O {[%emt 0:00:11]} 17. Ne5 {[%emt 0:06:29]} Rc7 {[%emt 0:00:09]} 18. Nd1 {[%emt 0:13:34]} Re8 {[%emt 0:09:16]} 19. Ne3 {[%emt 0:02:10]} Nd6 {[%emt 0:01:35]} 20. c3 {[%emt 0:05:31]} Bf8 {[%emt 0:03:03]} 21. Qa6 {[%emt 0:01:09]} Qb8 {[%emt 0:10:41]} 22. Qf1 {[%emt 0:05:06]} Nde4 {[%emt 0:06:26]} 23. N3g4 {[%emt 0:02:26]} Nxg4 {[%emt 0:02:30]} 24. Bxg4 {[%emt 0:00:42]} Qb7 {[%emt 0:01:17]} 25. Bf4 {[%emt 0:04:23]} Rce7 {[%emt 0:02:01]} 26. Bh3 {[%emt 0:02:25]} g5 {[%emt 0:01:34]} 27. Be3 {[%emt 0:01:57]} Bg7 {[%emt 0:00:05]} 28. Nf3 {[%emt 0:01:42]} Nd6 {[%emt 0:01:13]} 29. Nd2 {[%emt 0:03:16]} Qb8 {[%emt 0:05:00]} 30. Rec1 {[%emt 0:01:58]} f5 {[%emt 0:00:34]} 31. Bg2 {[%emt 0:00:28]} (31. Re1 $142) 31... Rf8 $19 {[%emt 0:03:25]} 32. Nf3 {[%emt 0:00:35]} f4 {[%emt 0:00:07]} 33. gxf4 {[%emt 0:00:13]} gxf4 {[%emt 0:00:13]} 34. Bd2 {[%emt 0:00:05]} Be4 {[%emt 0:01:40]} 35. b3 {[%emt 0:00:30]} Nf5 {[%emt 0:05:44]} 36. Kh1 {[%emt 0:01:00]} Bf6 {[%emt 0:02:10]} 37. Ne5 $2 {[%emt 0:01:31]} (37. Ng1 Bg5 38. Bxe4 dxe4 39. f3) 37... Bxe5 $19 {[%emt 0:00:42]} 38. dxe5 {[%emt 0:00:02]} Qxe5 {[%emt 0:00:54]} (38... f3 39. Bh3 Qxe5 40. Qa6 $19) 39. Re1 {[%emt 0:01:06]} (39. Bxe4 $142 dxe4 40. Qh3) 39... f3 $19 {[%emt 0:02:14]} 40. Bh3 {[%emt 0:00:07]} Rg7 {[%emt 0:00:05]} 41. Qa6 {[%emt 0:01:34]} Nh4 {[%emt 0:01:04]} 42. Rxe4 {[%emt 0:00:46]} dxe4 {[%emt 0:02:28]} 43. Qc4+ {[%emt 0:00:06]} Kh7 {[%emt 0:00:08]} 44. Re1 {[%emt 0:00:59]} (44. Qxc6 $142 Qh5 45. Rg1 Rxg1+ 46. Kxg1 Qg6+ 47. Qxg6+ Kxg6 48. Bf1) 44... Rg2 {[%emt 0:01:45]} 45. Qxe4+ {[%emt 0:00:02]} Qxe4 {[%emt 0:00:04]} 46. Rxe4 {[%emt 0:00:06]} Rfg8 {[%emt 0:00:03]} 47. Bxg2 $2 {[%emt 0:00:20]} (47. Re7+ $19 Kh8 (47... R8g7 $2 48. Rxg7+ Rxg7 49. Bf4 $19) 48. Re1 Rxf2 49. Bf4) 47... fxg2+ {[%emt 0:00:03]} 48. Kg1 {[%emt 0:00:02]} Nf3# {[%emt 0:00:01]} 0-1

[Event "VIII Open Semana Santa 2024"]
[Site "San Vicente del Raspeig"]
[Date "2024.03.29"]
[Round "5.2"]
[White "Kourkoulos-Arditis, Stamatis"]
[Black "Lamard, Guillaume"]
[Result "1-0"]
[ECO "C90"]
[WhiteElo "2556"]
[BlackElo "2483"]
[Annotator "TA"]
[PlyCount "95"]
[EventDate "2024.03.27"]
[EventType "swiss"]
[EventCountry "ESP"]
[SourceTitle "playchess.com"]
[Source "ChessBase"]
[SourceQuality "1"]
[TimeControl "5400+30"]

{[%evp 23,95,14,15,7,12,14,11,14,12,14,21,8,17,10,18,16,25,6,56,47,48,18,20,0,54,54,112,131,170,191,173,186,177,150,284,223,222,167,177,117,113,118,279,284,281,274,261,287,293,297,280,292,278,285,327,311,342,312,461,466,510,561,570,570,563,563,526,555,1065,1054,875,746,691,628]} 1. e4 {[%emt 0:03:54]} e5 {[%emt 0:02:07]} 2. Nf3 {[%emt 0:00:08]} Nc6 {[%emt 0:00:13]} 3. Bb5 {[%emt 0:00:04]} a6 {[%emt 0:00:17]} 4. Ba4 {[%emt 0:00:04]} Nf6 {[%emt 0:00:13]} 5. O-O {[%emt 0:00:08]} Be7 {[%emt 0:00:10]} 6. d3 {[%emt 0:00:32]} b5 {[%emt 0:00:14]} 7. Bb3 {[%emt 0:00:04]} d6 {[%emt 0:00:31]} 8. a4 {[%emt 0:00:55]} Bd7 {[%emt 0:00:35]} 9. c3 {[%emt 0:00:08]} O-O {[%emt 0:00:23]} 10. Bc2 {[%emt 0:00:08]} h6 {[%emt 0:00:23]} 11. Re1 {[%emt 0:00:16]} Re8 {[%emt 0:00:35]} 12. Nbd2 {[%emt 0:00:52][%cal Bb1d2,Bd2f1,Bf1g3][%mdl 32]} Bf8 {[%emt 0:01:00]} 13. Nf1 {[%emt 0:00:57]} d5 {[%emt 0:00:54]} 14. exd5 {[%emt 0:00:31]} Nxd5 {[%emt 0:00:12]} 15. Ng3 {[%emt 0:00:09] The position is equal.} b4 {[%emt 0:01:41]} 16. Bd2 {[%emt 0:01:59]} bxc3 {[%emt 0:02:21]} 17. bxc3 {[%emt 0:00:04]} Nf6 {[%emt 0:01:26]} 18. a5 {[%emt 0:03:57]} Bd6 {[%emt 0:00:53]} 19. Bb3 {[%emt 0:07:51]} Qc8 {[%emt 0:05:07]} 20. h3 {[%emt 0:01:38]} Be6 {[%emt 0:09:29]} (20... Rb8 $11) 21. Ba4 $14 {[%emt 0:00:46]} Bd7 {[%emt 0:00:16][%cal Be6d7,Bd7f5,Bf5g6][%mdl 32]} 22. Qc2 {[%emt 0:12:11]} Rb8 {[%emt 0:01:21]} 23. Qa2 {[%emt 0:08:38]} Re7 {[%emt 0:08:35]} (23... Nd8 $11) 24. Qc4 {[%emt 0:06:01]} Nxa5 {[%emt 0:09:00]} (24... Qe8 $14) 25. Qh4 $1 $16 {[%emt 0:13:09][%cal Od2h6] Strongly threatening Bxh6! White is more active.} Bf5 {[%emt 0:14:38] [#]} 26. Bxh6 $1 {[%emt 0:06:53][%mdl 512] And now Bg5 would win.} Bg6 {[%emt 0:07:44][%cal Oe7e6]} 27. Bg5 $40 {[%emt 0:02:04][%mdl 128] White has strong attack.} Re6 {[%emt 0:00:17]} 28. Bxf6 {[%emt 0:04:48]} gxf6 {[%emt 0:04:06]} (28... Rxf6 $16 29. Nxe5 Bxe5 30. Rxe5 Nc6) 29. Qg4 {[%emt 0:02:19]} Re7 {[%emt 0:00:17]} 30. Qxc8+ {[%emt 0:00:27]} Rxc8 {[%emt 0:00:06] [#]} 31. Bc2 {[%emt 0:00:07]} (31. Nh4 $1 $18 {Ngf5 is the strong threat.} Bxd3 32. Nhf5) 31... Nb7 {[%emt 0:02:20]} 32. Nh4 {[%emt 0:00:06][%cal Og3f5]} Rd7 $2 {[%emt 0:01:59] Loses the game.} (32... Ree8 $16 33. Ra4 (33. Rxa6 Nc5 $16) 33... Rb8) 33. Nxg6 $18 {[%emt 0:02:03]} (33. Rxa6 $6 Nc5 $18) 33... fxg6 {[%emt 0:00:04] [#] Black is weak on the light squares} 34. Bb3+ $1 {[%emt 0:00:04]} ({Weaker is} 34. Rxa6 Nc5 35. Rc6 Kg7 $16) 34... Kg7 {[%emt 0:00:29]} 35. Be6 $1 {[%emt 0:00:06]} ({Stronger than} 35. Rxa6 Nc5 36. Ba4 Rdd8 $15) 35... Rcd8 {[%emt 0:00:17]} 36. Bxd7 {[%emt 0:00:05]} (36. Rxa6 Nc5 37. Bxd7 Nxa6 $18) 36... Rxd7 {[%emt 0:00:02]} 37. Rxa6 {[%emt 0:03:11]} Nc5 {[%emt 0:00:05]} 38. Rc6 {[%emt 0:00:12]} Nxd3 {[%emt 0:01:56]} 39. Rd1 {[%emt 0:00:08]} Be7 {[%emt 0:00:25]} 40. h4 {[%emt 0:01:59][%cal Bh3h4,Bh4h5,Bh5g6][%mdl 32]} f5 {[%emt 0:01:26]} (40... Kf8 {was worth a try.} 41. Kf1 Bd8) 41. h5 {[%emt 0:00:59] White is clearly winning.} Bf6 {[%emt 0:00:06]} 42. f3 {[%emt 0:05:24]} Kf7 {[%emt 0:02:37] [#]} 43. Rxd3 $1 {[%emt 0:02:07][%mdl 512]} Rxd3 {[%emt 0:00:14]} 44. Rxc7+ {[%emt 0:00:06]} Ke6 {[%emt 0:02:10]} 45. hxg6 {[%emt 0:00:47] Hoping for Rc6+.} e4 {[%emt 0:01:55]} 46. Rc6+ {[%emt 0:01:44]} Ke5 {[%emt 0:02:33] [#]} 47. f4+ $1 {[%emt 0:00:23]} Kxf4 {[%emt 0:00:33]} 48. Nh5+ {[%emt 0:00:04] Weighted Error Value: White=0.10 (very precise) /Black=0.31.  Loses game:     	---       	Black=1      Mistake:       	White=1     	Black=5      Inaccurate:     	White=1     	Black=1      OK:         	White=14    	Black=11     Best:        	White=5     	Black=1      Strong:       	White=3     	---} 1-0

[Event "VIII Open Semana Santa 2024"]
[Site "San Vicente del Raspeig"]
[Date "2024.03.29"]
[Round "5.3"]
[White "Martin Duque, Jesus"]
[Black "Ivanchuk, Vasyl"]
[Result "0-1"]
[ECO "A35"]
[WhiteElo "2332"]
[BlackElo "2625"]
[Annotator "TA"]
[PlyCount "76"]
[EventDate "2024.03.27"]
[EventType "swiss"]
[EventCountry "ESP"]
[SourceTitle "playchess.com"]
[Source "ChessBase"]
[SourceQuality "1"]
[TimeControl "5400+30"]

{[%evp 17,76,19,5,18,31,38,35,31,65,41,43,0,8,0,0,0,0,0,0,0,0,0,0,0,0,0,0,7,7,0,19,3,10,7,12,13,8,0,6,0,0,0,0,0,0,0,0,-16,-9,-16,0,0,0,-58,-58,-727,-718,-29987,-29988,-29987,-1606]} 1. Nf3 {[%emt 0:01:24]} c5 {[%emt 0:00:59]} 2. c4 {[%emt 0:00:06]} Nc6 {[%emt 0:00:06]} 3. Nc3 {[%emt 0:01:12]} g6 {[%emt 0:00:17]} 4. e3 {[%emt 0:00:41]} Nf6 {[%emt 0:00:04]} 5. d4 {[%emt 0:00:15]} cxd4 {[%emt 0:00:04]} 6. exd4 {[%emt 0:00:06]} d5 {[%emt 0:00:03]} 7. cxd5 {[%emt 0:00:34]} Nxd5 {[%emt 0:00:04]} 8. Qb3 {[%emt 0:00:18]} e6 {[%emt 0:00:55]} 9. Bb5 {[%emt 0:15:09]} Bg7 {[%emt 0:01:30]} 10. Bg5 {[%emt 0:03:16]} f6 {[%emt 0:01:55]} 11. Bd2 {[%emt 0:02:39]} O-O {[%emt 0:05:19]} 12. O-O {[%emt 0:06:28] Weiß steht etwas besser.} Nce7 {[%emt 0:05:28]} 13. Bc4 {[%emt 0:10:04]} Qb6 {[%emt 0:09:27]} 14. Nxd5 {[%emt 0:10:48]} Nxd5 {[%emt 0:00:10]} 15. Bxd5 {[%emt 0:00:04]} exd5 {[%emt 0:00:02]} 16. Qxd5+ {[%emt 0:00:06]} Be6 {[%emt 0:00:03]} 17. Qa5 {[%emt 0:00:15]} Qxa5 {[%emt 0:02:11]} 18. Bxa5 {[%emt 0:00:33]} Bd5 {[%emt 0:00:04]} 19. Rfe1 {[%emt 0:01:28]} Kf7 {[%emt 0:00:47]} 20. a3 {[%emt 0:00:17]} Rfe8 {[%emt 0:01:14]} 21. Bc3 {[%emt 0:03:42]} Bh6 {[%emt 0:00:42]} 22. Nd2 {[%emt 0:01:06][%cal Bf3d2,Bd2f1,Bf1e3][%mdl 32]} b6 {[%emt 1:10:06]} 23. Nf1 {[%emt 0:00:14]} a5 {[%emt 0:00:00]} 24. Ne3 {[%emt 0:00:14]} Bb3 {[%emt 0:00:00]} 25. g3 {[%emt 0:03:07]} Re4 {[%emt 0:00:00]} 26. f4 {[%emt 0:03:22]} Bf8 {[%emt 0:00:00]} 27. Ng2 {[%emt 0:01:22]} Rxe1+ {[%emt 0:00:00]} 28. Rxe1 {[%emt 0:00:25]} b5 {[%emt 0:00:00]} 29. Ra1 {[%emt 0:01:57]} Bd6 {[%emt 0:00:00]} 30. Ne1 {[%emt 0:01:52]} h5 {[%emt 0:00:00]} 31. h4 {[%emt 0:03:06]} Re8 {[%emt 0:00:00] Droht stark ...b4.} 32. Bxa5 {[%emt 0:01:35]} Re2 {[%emt 0:00:00]} 33. Bc3 {[%emt 0:01:35] [#]} g5 $1 {[%emt 0:00:00]} 34. hxg5 {[%emt 0:03:22]} fxg5 {[%emt 0:00:00]} 35. Kf1 {[%emt 0:00:21]} ({Besser ist} 35. Nd3 $11 Re3 36. Ne5+ Bxe5 37. dxe5) 35... Rh2 $1 $15 {[%emt 0:00:00]} 36. fxg5 {[%emt 0:06:50][%mdl 8192]} (36. Bb4 $15 Bb8 37. Kg1) 36... Bxg3 $19 {[%emt 0:00:00] ( -> ...Bc4+). Das Läuferpaar ist gut.} 37. Kg1 {[%emt 0:03:46]} Bd5 {[%emt 0:00:00][%csl Gd5][%cal Rh2h1]} 38. Kf1 {[%emt 0:00:01]} h4 {[%emt 0:00:00] Gewichteter Fehlerwert: Weiß=0.53/Schwarz=0.04 (makellos) .  Verlustzug:     	Weiß=1     	---        Fehler:       	Weiß=1     	---        Ungenau:       	Weiß=2     	Schwarz=1     OK:         	Weiß=9     	Schwarz=10    Bester:       	---       	Schwarz=1     Stark:        	---       	Schwarz=1} (38... Rf2+ $142 39. Kg1 h4 40. Nd3 Rg2+ 41. Kf1 h3 42. Be1 h2 43. Bf2 h1=Q+ (43... h1=R+ $2 44. Ke2 $19) 44. Ke2 Qxa1 (44... Rxf2+ {ist ein Selbstmatt.} 45. Nxf2 Qf3+ 46. Kd2 Bf4+ 47. Ke1 Bc4 48. g6+ Kg7 49. Nd3 Bxd3 50. Rd1 Qg3#) 45. Kd2 Bxf2 (45... Rxf2+ {führt zum Matt.} 46. Kc3 Bd6 47. g6+ Kg7 48. Nxf2 Qc1+ 49. Kd3 Bc4+ 50. Ke4 Qf4#) 46. g6+ Kg8 (46... Kxg6 {wird mattgesetzt.} 47. Nf4+ Kf5 48. Kc3 Be1+ 49. Kd3 Qd1+ 50. Ke3 Rg3#) 47. Ke2 Bxd4+ 48. Nf2 Rxf2+ 49. Kd3 Qd1#) 0-1

[Event "VIII Open Semana Santa 2024"]
[Site "San Vicente del Raspeig"]
[Date "2024.03.29"]
[Round "5.4"]
[White "Alekseenko, Kirill"]
[Black "Patrelakis, Evaggelos"]
[Result "1-0"]
[ECO "C00"]
[WhiteElo "2650"]
[BlackElo "2430"]
[Annotator "TA"]
[PlyCount "87"]
[EventDate "2024.03.27"]
[EventType "swiss"]
[EventCountry "ESP"]
[SourceTitle "playchess.com"]
[Source "ChessBase"]
[SourceQuality "1"]
[TimeControl "5400+30"]

{[%evp 9,87,-20,-16,-12,-6,-17,-22,-6,-18,-18,-11,-16,-21,-21,37,25,35,0,0,0,0,0,29,0,-7,0,37,36,49,9,9,15,17,14,17,14,16,10,13,6,14,8,18,0,0,0,46,28,44,48,39,43,40,45,53,74,54,59,54,44,321,335,716,674,1058,989,1416,1428,4631,4631,4622,3095,5073,4631,29971,29976,29977,29978,29986,29987]} 1. e4 {[%emt 0:00:05]} e6 {[%emt 0:00:41]} 2. Nf3 {[%emt 0:01:01]} d5 {[%emt 0:00:12]} 3. Nc3 {[%emt 0:00:08]} d4 {[%emt 0:01:17]} 4. Ne2 {[%emt 0:00:35]} c5 {[%emt 0:00:09]} 5. Ng3 {[%emt 0:01:31]} Nc6 {[%emt 0:01:54]} 6. Bb5 {[%emt 0:02:00]} Bd7 {[%emt 0:03:23][%cal Bc8d7,Bd7c6,Bc6b5,Bb5a6][%mdl 32]} 7. Bxc6 {[%emt 0:08:20]} Bxc6 {[%emt 0:00:45]} 8. Ne5 {[%emt 0:00:06] The position is equal.} Bb5 {[%emt 0:04:33]} 9. a4 {[%emt 0:05:05]} Ba6 {[%emt 0:00:05]} 10. d3 {[%emt 0:00:32]} Qc7 {[%emt 0:03:17]} 11. f4 {[%emt 0:03:08]} Bd6 {[%emt 0:08:10]} (11... O-O-O $11) 12. O-O $14 {[%emt 0:00:56]} O-O-O {[%emt 0:14:27][%cal Oc8b8]} 13. Nc4 {[%emt 0:08:37]} Bxc4 {[%emt 0:07:42]} 14. dxc4 {[%emt 0:00:06]} f6 {[%emt 0:01:31]} 15. Bd2 {[%emt 0:06:06]} Qd7 {[%emt 0:07:12]} 16. c3 {[%emt 0:10:42]} Bc7 {[%emt 0:02:49]} 17. Qf3 {[%emt 0:02:41]} e5 {[%emt 0:40:53]} 18. cxd4 {[%emt 0:04:44]} exf4 {[%emt 0:00:00]} 19. Bxf4 {[%emt 0:04:10]} Bxf4 {[%emt 0:00:00]} 20. Qxf4 {[%emt 0:00:04] [#] Strongly threatening d5.} Qxd4+ {[%emt 0:00:00]} 21. Kh1 {[%emt 0:00:40]} Nh6 {[%emt 0:00:00]} 22. Nh5 {[%emt 0:01:20]} Rd7 {[%emt 0:00:00] [#]} 23. Nxg7 $1 {[%emt 0:09:50]} Rxg7 {[%emt 0:00:00]} (23... Rg8 {seems wilder.} 24. Nf5 Nxf5 25. Qxf5 Qxb2 26. Qxc5+ Rc7) 24. Qxh6 {[%emt 0:00:14]} Rhg8 {[%emt 0:00:00]} 25. Qxf6 {[%emt 0:11:48]} Qxe4 {[%emt 0:00:00]} (25... Rxg2 {simplifies} 26. Qxd4 cxd4 27. Rf8+ Rxf8 28. Kxg2 Rf4) 26. Qf3 {[%emt 0:00:59]} (26. Qf5+ {simplifies} Qxf5 27. Rxf5 Rxg2 28. Rxc5+ Kb8 29. Rb1) 26... Qxc4 {[%emt 0:00:00]} (26... Qxf3 27. gxf3 Rf8 28. Rae1 $14) 27. Rac1 {[%emt 0:00:15]} Qxa4 {[%emt 0:00:00]} (27... Qd4 $11 {might be stronger.} 28. g3 Rc7) 28. Qf5+ $1 {[%emt 0:00:21]} (28. Rxc5+ Kb8 $16) 28... Kb8 {[%emt 0:00:00]} 29. Qe5+ {[%emt 0:08:30]} Rc7 $1 {[%emt 0:00:00]} ({But not} 29... Ka8 $2 30. Qxg7 (30. Rxc5 Rxg2 31. Qe6 Qg4 $11) (30. Qxc5 Qe8 $11) 30... Qe8 31. Qf7 $18 (31. Qxh7 a6 $18)) 30. Rxc5 {[%emt 0:00:27]} Qd7 {[%emt 0:00:00]} 31. Qxc7+ {[%emt 0:00:55]} Qxc7 {[%emt 0:00:00]} 32. Rxc7 {[%emt 0:00:06]} Kxc7 {[%emt 0:00:00][%mdl 4096] Endgame. KR-KR} 33. Rf7+ {[%emt 0:00:02]} Kc6 $1 {[%emt 0:00:03]} 34. Rxh7 {[%emt 0:00:08]} Rd8 $2 {[%emt 0:00:04][%mdl 8192] This costs Black the game.} ({Black should try} 34... a5 $14) 35. h4 $18 {[%emt 0:02:17][%cal Bh2h4,Bh4h5,Bh5h6,Bh6h7][%mdl 32]} Rd2 $2 {[%emt 0:01:32]} (35... a5 36. h5 Rd5) 36. h5 {[%emt 0:01:05]} Rxb2 {[%emt 0:00:06]} 37. h6 {[%emt 0:00:24]} Re2 {[%emt 0:04:31]} 38. Rg7 {[%emt 0:01:32] Intending h7 and mate.} Re8 {[%emt 0:00:56]} 39. h7 {[%emt 0:00:55] Rg8 would kill now.} Rh8 {[%emt 0:00:05]} 40. g4 {[%emt 0:00:08][%cal Bg2g4,Bg4g5,Bg5g6][%mdl 32]} a5 {[%emt 0:00:51][%cal Ba7a5,Ba5a4,Ba4a3][%mdl 32]} 41. g5 {[%emt 0:00:07]} a4 {[%emt 0:01:08]} 42. g6 {[%emt 0:00:05] White mates.} a3 {[%emt 0:00:05]} 43. Re7 {[%emt 0:00:41]} Kd6 {[%emt 0:01:34]} 44. Re1 {[%emt 0:00:46] Weighted Error Value: White=0.05 (flawless) /Black=0.46.  Loses game:     	---       	Black=1      Mistake:       	---       	Black=3      Inaccurate:     	White=3     	Black=3      OK:         	White=10    	Black=12     Best:        	White=6     	Black=1      Strong:       	White=1     	Black=2} 1-0